fUSD/lending_fUSD_20240716
["ID","MTS","AMOUNT","RATE_DAILY","PERIOD"]
[332253389,1721091046341,-7511.43041172,0.00015,2]
[332253390,1721091046352,-12916.53216078,0.00015,2]
[332253391,1721091046364,-1313.87865291,0.00015,2]
[332253392,1721091046375,-11026.4038752,0.00015,2]
[332253393,1721091046393,-155.0,0.00013516,2]
[332253394,1721091046404,-3453.5155862,0.00015,2]
[332253395,1721091046416,-32951.44758523,0.00015,2]
[332253396,1721091046438,-1774.86208729,0.00015,2]
[332253397,1721091046450,-7403.1204677,0.00015,2]
[332253398,1721091046461,-326.1616791,0.00015,2]
[332253399,1721091046472,-43005.23091192,0.00015,2]
[332253400,1721091046484,-1002.44274149,0.00015,2]
[332253401,1721091046495,-6000.0,0.00015,2]
[332253402,1721091046506,-1383.40857251,0.00015,2]
[332253403,1721091046517,-2250.53767768,0.00015,2]
[332253404,1721091046528,-25492.68481151,0.00015,2]
[332253445,1721092232379,-606.06233674,0.00010973,2]
[332253446,1721092232500,-313.76731671,0.00010973,2]
[332253447,1721092232510,-757.55698666,0.00011,2]
[332253448,1721092232521,-242.44301334,0.00011,2]
[332253449,1721092232531,-587.14758903,0.00011073,2]
[332253450,1721092232565,-104.35241097,0.00011073,2]
[332253451,1721092232576,-300.0,0.00011097,2]
[332253452,1721092232586,-83.30690196,0.00011098,2]
[332253453,1721092232598,-967.11779591,0.00011098,2]
[332253454,1721092232608,-358.51698252,0.00011098,2]
[332253455,1721092232617,-364.84556817,0.00011098,2]
[332253456,1721092232627,-305.81510484,0.00011098,2]
[332253457,1721092232637,-304.65330378,0.00011098,2]
[332253458,1721092232647,-165.59696297,0.00012273,2]
[332253459,1721092232661,-1092.9533,0.00012611,2]
[332253460,1721092232671,-1000.0,0.00012932,2]
[332253461,1721092232681,-216.81,0.00012958,2]
[332253462,1721092232691,-250.0,0.00012958,2]
[332253463,1721092232700,-2980.31,0.00012968,2]
[332253464,1721092232710,-250.0,0.00012982,2]
[332253465,1721092232719,-850.0,0.00013,2]
[332253466,1721092232730,-3079.48,0.00013138,2]
[332253467,1721092232739,-500.0,0.0001319,2]
[332253468,1721092232748,-500.0,0.00013199,2]
[332253469,1721092232758,-500.0,0.00013208,2]
[332253470,1721092232767,-500.0,0.00013217,2]
[332253471,1721092232777,-500.0,0.00013226,2]
[332253472,1721092232786,-500.0,0.00013234,2]
[332253473,1721092232796,-500.0,0.00013243,2]
[332253474,1721092232805,-500.0,0.00013252,2]
[332253475,1721092232815,-500.0,0.00013261,2]
[332253476,1721092232825,-500.0,0.0001327,2]
[332253477,1721092232835,-500.0,0.00013278,2]
[332253478,1721092232844,-500.0,0.00013287,2]
[332253479,1721092232853,-500.0,0.00013296,2]
[332253480,1721092232862,-500.0,0.00013305,2]
[332253481,1721092232871,-150.0,0.00013305,2]
[332253482,1721092232880,-500.0,0.00013314,2]
[332253483,1721092233075,-500.0,0.00013322,2]
[332253484,1721092233085,-500.0,0.00013331,2]
[332253485,1721092233094,-588.33861129,0.00013336,2]
[332253563,1721092240710,-103.16138871,0.00013336,2]
[332253564,1721092240720,-500.0,0.0001334,2]
[332253565,1721092240732,-500.0,0.00013349,2]
[332253566,1721092240741,-500.0,0.00013358,2]
[332253567,1721092240750,-500.0,0.00013366,2]
[332253568,1721092240760,-500.0,0.00013375,2]
[332253569,1721092240769,-500.0,0.00013384,2]
[332253570,1721092240778,-500.0,0.00013393,2]
[332253571,1721092240787,-500.0,0.00013402,2]
[332253572,1721092240797,-500.0,0.0001341,2]
[332253573,1721092240806,-484.13297627,0.00013516,2]
[332253574,1721092240815,-314.80128142,0.00013543,2]
[332253575,1721092240824,-312.2862,0.0001368,2]
[332253576,1721092240833,-500.0,0.000137,2]
[332253577,1721092240843,-289.43,0.00013791,2]
[332253578,1721092240852,-500.0,0.00013799,2]
[332253579,1721092240861,-500.0,0.00013854,2]
[332253580,1721092240871,-652.80994778,0.00013899,2]
[332253581,1721092240880,-500.0,0.00013909,2]
[332253582,1721092240890,-500.0,0.00013964,2]
[332253583,1721092240900,-358.89065383,0.00013989,2]
[332253584,1721092240911,-358.89065383,0.00013989,2]
[332253585,1721092240921,-500.0,0.00014018,2]
[332253586,1721092240930,-500.0,0.00014073,2]
[332253587,1721092240940,-169.02,0.00014112,2]
[332253588,1721092240949,-500.0,0.00014128,2]
[332253589,1721092240958,-500.0,0.00014183,2]
[332253590,1721092240968,-300.0,0.00014192,2]
[332253591,1721092240978,-300.86,0.00014192,2]
[332253592,1721092240988,-322.9,0.00014192,2]
[332253593,1721092240997,-500.0,0.00014238,2]
[332253594,1721092241007,-500.0,0.00014292,2]
[332253595,1721092241016,-500.0,0.00014347,2]
[332253596,1721092241026,-292.93579283,0.00014393,2]
[332253597,1721092241035,-500.0,0.00014402,2]
[332253598,1721092241045,-500.0,0.00014457,2]
[332253599,1721092241054,-500.0,0.00014512,2]
[332253600,1721092241064,-1000.0,0.00014548,2]
[332253601,1721092241073,-500.0,0.00014566,2]
[332253602,1721092241082,-132.78110533,0.00014621,2]
[332253618,1721092243570,-507.22295453,0.00014499,2]
[332253619,1721092243632,-815.67981315,0.00014499,2]
[332253620,1721092243642,-367.21889467,0.00014621,2]
[332253621,1721092243656,-500.0,0.00014676,2]
[332253622,1721092243667,-500.0,0.00014731,2]
[332253623,1721092243676,-1000.0,0.00014785,2]
[332253624,1721092243687,-186.89790613,0.00014786,2]
[332253660,1721092245599,-262.14126957,0.00014786,2]
[332253661,1721092245608,-565.9024,0.0001489,2]
[332253662,1721092245617,-183.4622,0.0001489,2]
[332253663,1721092245626,-214.37823328,0.0001489,2]
[332253664,1721092245668,-353.504,0.0001489,2]
[332253665,1721092245680,-274.50099655,0.0001489,2]
[332253666,1721092245735,-1624.2921,0.0001489,2]
[332253667,1721092245747,-33.32467017,0.0001489,2]
[332253668,1721092245756,-1702.658338,0.000149,2]
[332253669,1721092245765,-2000.0,0.000149,2]
[332253670,1721092245775,-3372.8496,0.000149,2]
[332253671,1721092245784,-211.06707513,0.000149,2]
[332253672,1721092245793,-211.06707512,0.000149,2]
[332253673,1721092245802,-211.06707512,0.000149,2]
[332253674,1721092245811,-178.90381861,0.000149,2]
[332253675,1721092245820,-347.31674194,0.000149,2]
[332253676,1721092245830,-524.6389317,0.00014966,2]
[332253677,1721092245839,-2499.18517507,0.0001498,3]
[332253681,1721093201446,665.88,0.00010503,2]
[332253683,1721093237551,297.998808,0.00010503,2]
[332253700,1721093342962,371.65236417,0.00010503,2]
[332253714,1721093414920,229.78,0.000219,31]
[332253720,1721093431694,-150.0,0.00011,2]
[332253722,1721093431703,-600.0,0.00012329,2]
[332253724,1721093431712,-249.97,0.00012381,2]
[332253725,1721093431723,-465.44,0.00012381,2]
[332253726,1721093431732,-155.27452529,0.00012731,2]
[332253727,1721093431742,-155.14137895,0.00012731,2]
[332253728,1721093431751,-665.88,0.00012767,2]
[332253729,1721093431760,-233.43786833,0.00012962,2]
[332253730,1721093431772,-266.56213167,0.00012962,2]
[332253732,1721093431782,-500.0,0.0001297,2]
[332253733,1721093431791,-500.0,0.00012979,2]
[332253734,1721093431801,-500.0,0.00012988,2]
[332253735,1721093431810,-500.0,0.00012997,2]
[332253736,1721093431819,-500.0,0.00013006,2]
[332253737,1721093431829,-500.0,0.00013014,2]
[332253738,1721093431838,-500.0,0.00013023,2]
[332253739,1721093431849,-500.0,0.00013032,2]
[332253740,1721093431859,-500.0,0.00013041,2]
[332253741,1721093431868,-500.0,0.0001305,2]
[332253742,1721093431877,-500.0,0.00013058,2]
[332253743,1721093431886,-500.0,0.00013067,2]
[332253744,1721093431896,-500.0,0.00013076,2]
[332253745,1721093431905,-500.0,0.00013085,2]
[332253746,1721093431919,-500.0,0.00013094,2]
[332253747,1721093431929,-500.0,0.00013102,2]
[332253748,1721093431939,-500.0,0.00013111,2]
[332253749,1721093431950,-500.0,0.0001312,2]
[332253750,1721093431959,-1687.86,0.0001312,2]
[332253751,1721093431969,-155.0,0.00013128,2]
[332253752,1721093431978,-500.0,0.00013129,2]
[332253753,1721093431988,-500.0,0.00013138,2]
[332253754,1721093431998,-500.0,0.00013146,2]
[332253755,1721093432007,-250.0,0.00013152,2]
[332253756,1721093432018,-500.0,0.00013155,2]
[332253757,1721093432029,-500.0,0.00013164,2]
[332253758,1721093432038,-500.0,0.00013173,2]
[332253759,1721093432048,-500.0,0.00013182,2]
[332253760,1721093432058,-250.0,0.00013199,2]
[332253761,1721093432069,-231.55,0.00013333,2]
[332253762,1721093432078,-400.0,0.00013528,2]
[332253763,1721093432087,-304.55324922,0.00013543,2]
[332253764,1721093432097,-789.6999555,0.00013736,2]
[332253765,1721093432107,-789.6999555,0.00013736,2]
[332253766,1721093432116,-305.81510484,0.00013759,2]
[332253767,1721093432126,-423.74289053,0.00013802,2]
[332253768,1721093432135,-600.0,0.00013871,2]
[332253769,1721093432144,-176.32466843,0.00013889,2]
[332253770,1721093432153,-616.33184579,0.00013889,2]
[332253772,1721093432162,-205998.66191149,0.00014,2]
[332253773,1721093432171,-168.45,0.00014186,2]
[332253774,1721093432180,-747.0,0.00014255,2]
[332253775,1721093432189,-215.83537176,0.00014275,2]
[332253776,1721093432198,-5200.861,0.00014276,2]
[332253777,1721093432208,-5838.551,0.00014276,2]
[332253778,1721093432217,-1203.23,0.00014276,2]
[332253779,1721093432226,-1671.481,0.00014276,2]
[332253780,1721093432235,-38429.598,0.00014276,2]
[332253781,1721093432244,-156.0,0.00014393,2]
[332253782,1721093432254,-909.816405,0.00014521,2]
[332253783,1721093432263,-1103.30317602,0.000148,2]
[332253784,1721093432272,-590.0,0.0001485,2]
[332253785,1721093432280,-2000.0,0.000149,2]
[332253786,1721093432289,-166.25448608,0.000149,2]
[332253787,1721093432298,-3000.0,0.00014966,2]
[332253788,1721093432307,-170.99026406,0.0001498,2]
[332253789,1721093432317,-200.0,0.0001498,2]
[332253790,1721093432326,-10228.85991129,0.0001498,2]
[332253791,1721093432335,-200.0,0.0001498,2]
[332253792,1721093432345,-21484.3827305,0.0001498,3]
[332253793,1721093432354,-30421.1861623,0.0001498,3]
[332253794,1721093432363,-24080.50292041,0.00014988,2]
[332253795,1721093432372,-500.0,0.00014989,2]
[332253796,1721093432381,-500.0,0.00014989,2]
[332253797,1721093432390,-500.0,0.00014989,2]
[332253798,1721093432399,-171.11770041,0.00014989,2]
[332253799,1721093432408,-500.0,0.00014989,2]
[332253800,1721093432425,-288.69741157,0.00014989,2]
[332253801,1721093432434,-15210.5930811,0.0001499,3]
[332253802,1721093432443,-208194.60741773,0.0001499,3]
[332253803,1721093432476,-886.99,0.0001499,3]
[332253804,1721093432487,-54573.82677063,0.0001499,3]
[332253805,1721093432502,-649.76772786,0.0001499,3]
[332253811,1721093438049,-1945.9932105,0.00012731,2]
[332253812,1721093438061,-165.198934,0.00012731,2]
[332253813,1721093438072,-240.0,0.0001485,2]
[332253814,1721093438081,-236.34480523,0.000149,2]
[332253815,1721093438092,-2000.0,0.000149,2]
[332253816,1721093438103,-972.17179263,0.0001499,3]
[332253817,1721093438115,-630.73413543,0.0001499,3]
[332253818,1721093438127,-2790.75,0.0001499,3]
[332253822,1721093440234,-422.38154264,0.00012731,2]
[332253823,1721093440244,-250.67796898,0.00014275,2]
[332253825,1721093440253,-1075.472,0.00014276,2]
[332253828,1721093440262,-971.27849202,0.0001499,3]
[332253831,1721093440277,-1568.30999999,0.0001499,3]
[332253833,1721093440288,-714.6450005,0.0001499,3]
[332253835,1721093440299,-49288.94165201,0.0001499,3]
[332253836,1721093441413,1007.65065562,0.00010503,2]
[332253861,1721093442830,-1254.74861932,0.00012302,2]
[332253862,1721093442839,-626.67992915,0.00012731,2]
[332253863,1721093442849,-59022.8040402,0.0001499,3]
[332253864,1721093442858,-150.0,0.0001499,2]
[332253865,1721093442867,-450.2344603,0.00014999,2]
[332253866,1721093442876,-2712.69339999,0.00014999,2]
[332253867,1721093442885,-231.55,0.00014999,2]
[332253868,1721093442895,-32846.77300046,0.00015,2]
[332253869,1721093442904,-291750.51655104,0.00015,2]
[332253870,1721093443179,-330.00873949,0.00015,2]
[332253872,1721093443191,-3050.57517564,0.00015,2]
[332253879,1721093447647,10259.97466844,0.00010503,2]
[332253880,1721093448227,-306.37177182,0.00013736,2]
[332253881,1721093448238,-156.0,0.00014099,2]
[332253882,1721093448247,-339.49231641,0.0001489,2]
[332253883,1721093448262,-974.61268359,0.0001489,2]
[332253884,1721093448271,-279.52089565,0.00014989,2]
[332253885,1721093448281,-449.94564991,0.00014989,2]
[332253886,1721093448442,-50.05435009,0.00014989,2]
[332253887,1721093448454,-600.61741869,0.00015,2]
[332253888,1721093448467,-16940.97796025,0.00015,2]
[332253889,1721093448479,-6304.3395,0.00015,2]
[332253892,1721093483749,144304.0,0.00027,120]
[332253893,1721093499710,1561.4619,0.000109,2]
[332253896,1721093593956,225.26200652,0.000109,2]
[332253898,1721093630961,54320.0,0.00027,120]
[332253907,1721093887840,-269.31063531,0.00011,2]
[332253911,1721094099335,150.23,0.00010429,2]
[332253912,1721094101893,-150.0,0.00011,2]
[332253913,1721094102052,-150.0,0.00011,2]
[332253914,1721094102161,-150.0,0.00011,2]
[332253915,1721094102238,-150.0,0.00011,2]
[332253916,1721094188885,-150.0,0.00011,2]
[332253917,1721094189052,-150.0,0.00011,2]
[332253918,1721094189116,-150.0,0.00011,2]
[332253919,1721094189230,-150.0,0.00011,2]
[332253920,1721094281002,-150.0,0.00011,2]
[332253921,1721094281189,-86.91249339,0.00011,2]
[332253922,1721094439771,-630.08,0.00011038,2]
[332253923,1721094439794,-1024.0521595,0.00011098,2]
[332253924,1721094439821,-155.0,0.00012273,2]
[332253925,1721094439845,-304.50648181,0.00012302,2]
[332253926,1721094439869,-500.0,0.00012768,2]
[332253927,1721094439893,-500.0,0.00012777,2]
[332253928,1721094439916,-500.0,0.00012786,2]
[332253929,1721094439939,-500.0,0.00012794,2]
[332253930,1721094439962,-500.0,0.00012803,2]
[332253931,1721094439985,-500.0,0.00012812,2]
[332253932,1721094440008,-500.0,0.00012821,2]
[332253933,1721094440032,-500.0,0.0001283,2]
[332253934,1721094440055,-500.0,0.00012838,2]
[332253935,1721094440079,-500.0,0.00012847,2]
[332253936,1721094440103,-500.0,0.00012856,2]
[332253937,1721094440127,-500.0,0.00012865,2]
[332253938,1721094440150,-500.0,0.00012874,2]
[332253939,1721094440173,-500.0,0.00012882,2]
[332253940,1721094440197,-500.0,0.00012891,2]
[332253941,1721094440220,-500.0,0.000129,2]
[332253942,1721094440243,-500.0,0.00012909,2]
[332253943,1721094440265,-500.0,0.00012918,2]
[332253944,1721094440288,-500.0,0.00012926,2]
[332253945,1721094440311,-500.0,0.00012935,2]
[332253946,1721094440336,-500.0,0.00012944,2]
[332253947,1721094440363,-500.0,0.00012953,2]
[332253948,1721094440389,-946.36224616,0.00013128,2]
[332253949,1721094440413,-261.07,0.00013166,2]
[332253950,1721094440438,-1000.0,0.00013293,2]
[332253951,1721094440461,-630.08,0.00013302,2]
[332253952,1721094440484,-722.021139,0.00013698,2]
[332253953,1721094440506,-250.0,0.00013704,2]
[332253954,1721094440529,-722.021139,0.00013753,2]
[332253955,1721094440551,-382.91197672,0.00013802,2]
[332253956,1721094440574,-209.83100052,0.00013802,2]
[332253957,1721094440601,-14702.283,0.0001389,2]
[332253958,1721094440624,-2844.728879,0.0001389,2]
[332253959,1721094440646,-547.27126759,0.00013899,2]
[332253960,1721094440668,-1323.03195592,0.00013899,2]
[332253961,1721094440689,-364.88174851,0.00013899,2]
[332253962,1721094440711,-48175.0721,0.000139,2]
[332253963,1721094440731,-2125.8183,0.000139,2]
[332253964,1721094440752,-818.834764,0.00013973,2]
[332253965,1721094441032,-265.33586948,0.00013989,2]
[332253967,1721094457179,1323.03195592,0.00013849,2]
[332253968,1721094459295,-500.0,0.000141,5]
[332253969,1721094459318,-842.58,0.00014141,2]
[332253970,1721094459340,-150.56,0.00014192,2]
[332253971,1721094459365,-1000.0,0.000142,5]
[332253972,1721094459392,-152.92779993,0.00014275,2]
[332253973,1721094459414,-542.16458895,0.00014275,2]
[332253974,1721094459437,-500.0,0.00014275,2]
[332253975,1721094459458,-150.0,0.00014275,2]
[332253976,1721094459483,-500.97731564,0.00014275,2]
[332253977,1721094459504,-152.83,0.00014278,2]
[332253978,1721094459525,-379.27,0.00014278,2]
[332253979,1721094459545,-301.29,0.00014278,2]
[332253980,1721094459568,-1500.0,0.000143,5]
[332253981,1721094459589,-500.0,0.0001433,2]
[332253982,1721094459613,-150.0,0.00014361,2]
[332253983,1721094459635,-500.0,0.00014384,2]
[332253984,1721094459656,-2000.0,0.000144,5]
[332253985,1721094459676,-500.0,0.00014439,2]
[332253986,1721094459696,-500.0,0.00014494,2]
[332253987,1721094459716,-2500.0,0.000145,5]
[332253988,1721094459737,-500.0,0.00014549,2]
[332253989,1721094459757,-500.0,0.000146,5]
[332253990,1721094459778,-500.0,0.00014604,2]
[332253991,1721094459798,-164.54973123,0.00014658,2]
[332253992,1721094459818,-500.0,0.000147,5]
[332253993,1721094459839,-818.834764,0.00014795,2]
[332253994,1721094459860,-189.94512515,0.00014799,2]
[332253995,1721094459881,-1158.03918907,0.000148,2]
[332253996,1721094459902,-500.0,0.000148,5]
[332253997,1721094459923,-261.07,0.00014812,2]
[332253998,1721094459943,-485.68408792,0.00014849,2]
[332253999,1721094459964,-3000.0,0.0001485,2]
[332254000,1721094459984,-226.82895443,0.00014864,2]
[332254001,1721094460003,-254.84680988,0.0001489,2]
[332254002,1721094460023,-348.1639,0.0001489,2]
[332254003,1721094460043,-16541.21175067,0.0001489,2]
[332254017,1721094631929,-348.90351356,0.00012302,2]
[332254018,1721094631941,-299.99,0.00012302,2]
[332254019,1721094632130,-297.4687326,0.00012302,2]
[332254020,1721094632139,-172.01432505,0.00012302,2]
[332254021,1721094632151,-774.34792111,0.00012302,2]
[332254022,1721094632161,-15.30207889,0.00012314,2]
[332254023,1721094632173,-399.44183743,0.00012314,2]
[332254024,1721094632183,-41.64349643,0.00012733,2]
[332254025,1721094632194,-458.35650357,0.00012733,2]
[332254026,1721094632203,-393.92765293,0.00012742,2]
[332254027,1721094632334,-106.07234707,0.00012742,2]
[332254028,1721094632345,-500.0,0.0001275,2]
[332254029,1721094632355,-500.0,0.00012759,2]
[332254030,1721094632365,-250.0,0.00014016,2]
[332254031,1721094632374,-243.35,0.00014052,2]
[332254032,1721094632384,-569.7136,0.0001479,2]
[332254033,1721094632394,-655.067811,0.00014795,2]
[332254035,1721094632404,-150.0,0.0001489,2]
[332254036,1721094632413,-589.9031083,0.0001489,2]
[332254037,1721094632422,-2048.45681153,0.0001489,2]
[332254038,1721094632432,-189.94512515,0.0001489,2]
[332254039,1721094632444,-763.52729289,0.0001489,2]
[332254040,1721094632459,-5888.14399479,0.0001489,2]
[332254041,1721094632470,-9417.06768576,0.0001489,2]
[332254042,1721094632483,-64249.42437589,0.0001489,2]
[332254043,1721094632493,-155.0,0.00014899,2]
[332254044,1721094632503,-155.0,0.00014899,2]
[332254045,1721094632512,-2503.41,0.000149,2]
[332254046,1721094632523,-2000.0,0.000149,2]
[332254047,1721094632532,-167.7456079,0.000149,2]
[332254048,1721094632541,-500.0,0.000149,5]
[332254049,1721094632551,-155.94648637,0.000149,2]
[332254050,1721094632560,-1000.0,0.00014954,2]
[332254051,1721094632570,-524.63126405,0.00014973,2]
[332254052,1721094632580,-465.10052079,0.0001498,3]
[332254053,1721094632589,-500.0,0.00014989,2]
[332254054,1721094632600,-500.0,0.00014989,2]
[332254055,1721094632609,-641.29642985,0.00014989,2]
[332254056,1721094632618,-151.49948618,0.00014989,2]
[332254057,1721094632628,-222.55485205,0.00014989,2]
[332254058,1721094632637,-282.88022098,0.00014989,2]
[332254059,1721094632647,-500.0,0.00014989,2]
[332254060,1721094632657,-344.88820053,0.00014989,2]
[332254061,1721094632667,-418.96347641,0.00014989,2]
[332254062,1721094632676,-191.18901584,0.00014989,2]
[332254063,1721094632686,-212.23130056,0.00014989,2]
[332254064,1721094632695,-500.0,0.00014989,2]
[332254065,1721094632704,-500.0,0.00014989,2]
[332254066,1721094632714,-179.61154275,0.00014989,2]
[332254067,1721094632723,-500.0,0.00014989,2]
[332254068,1721094632734,-234.14767258,0.00014989,2]
[332254069,1721094632743,-500.0,0.00014989,2]
[332254070,1721094632753,-301.65999789,0.00014989,2]
[332254071,1721094632763,-164.72335111,0.00014989,2]
[332254072,1721094632772,-510.42309073,0.00014989,2]
[332254073,1721094632783,-451.70283933,0.00014989,2]
[332254074,1721094632792,-313.35128335,0.00014989,2]
[332254075,1721094632802,-212.81286068,0.00014989,2]
[332254076,1721094632812,-236.44699961,0.00014989,2]
[332254077,1721094632821,-173.84268821,0.00014989,2]
[332254078,1721094632831,-513.86752894,0.00014989,2]
[332254079,1721094632841,-472.61604008,0.00014989,2]
[332254080,1721094632851,-251.93880911,0.00014989,2]
[332254081,1721094632860,-500.0,0.00014989,2]
[332254082,1721094632870,-328.58581754,0.00014989,2]
[332254083,1721094632880,-318.76006247,0.00014989,2]
[332254084,1721094632890,-293.88504656,0.00014989,2]
[332254085,1721094632899,-569.82629819,0.00014989,2]
[332254086,1721094632909,-509.23226785,0.00014989,2]
[332254087,1721094632918,-153.69996818,0.00014989,2]
[332254088,1721094632928,-192.61600741,0.00014989,2]
[332254089,1721094632937,-180.83856029,0.00014989,2]
[332254090,1721094632947,-251.85235988,0.00014989,2]
[332254091,1721094632956,-185.04178342,0.00014989,2]
[332254092,1721094632966,-292.77268145,0.00014989,2]
[332254093,1721094632975,-500.0,0.00014989,2]
[332254094,1721094632986,-500.0,0.00014989,2]
[332254095,1721094632995,-155.03350693,0.0001499,3]
[332254096,1721094633004,-310.06701386,0.0001499,3]
[332254097,1721094633014,-24625.48154636,0.0001499,3]
[332254098,1721094633027,-354571.93544164,0.0001499,3]
[332254099,1721094633036,-1185.75771504,0.0001499,2]
[332254100,1721094633046,-181.77390728,0.0001499,2]
[332254101,1721094633056,-463973.80974068,0.00015,2]
[332254102,1721094633068,-429.8742519,0.00015,2]
[332254106,1721094637952,-3000.0,0.00015,2]
[332254108,1721094637963,-3160.1999999,0.00015,2]
[332254111,1721094638732,-3479.19015416,0.00015,2]
[332254112,1721094638745,-1466.694531,0.00015,2]
[332254113,1721094638756,-972.84181504,0.00015,2]
[332254114,1721094638771,-2479.21250672,0.00015,2]
[332254115,1721094638782,-3403.9531416,0.00015,2]
[332254116,1721094638793,-557.495,0.00015,2]
[332254117,1721094638804,-1200.04944682,0.00015,2]
[332254118,1721094640462,-1386.31903154,0.0001479,2]
[332254129,1721094643098,-2206.74230156,0.0001479,2]
[332254136,1721094643284,-5017.03426347,0.0001479,2]
[332254137,1721094643462,-3864.08810343,0.0001479,2]
[332254138,1721094643472,-7871.78741921,0.00015,2]
[332254139,1721094643482,-290911.1446564,0.00015,2]
[332254140,1721094643740,-336.718,0.00015,2]
[332254145,1721094646071,-500.0,0.00012724,2]
[332254146,1721094646177,-1583.9988,0.00015,2]
[332254147,1721094646190,-2522.7804,0.00015,2]
[332254148,1721094646201,-471031.44450705,0.00015,2]
[332254154,1721094679416,-150.0,0.00013661,2]
[332254155,1721094679598,-150.0,0.00013661,2]
[332254156,1721094679681,-150.0,0.00013661,2]
[332254157,1721094679791,-150.0,0.00013661,2]
[332254158,1721094679868,-150.0,0.00013661,2]
[332254159,1721094680023,-150.0,0.00013661,2]
[332254160,1721094680130,-150.0,0.00013661,2]
[332254161,1721094680183,-150.0,0.00013661,2]
[332254162,1721094682968,-150.0,0.00013661,2]
[332254163,1721094683136,-150.0,0.00013661,2]
[332254164,1721094683228,-279.19015416,0.00013661,2]
[332254165,1721094694439,-500.0,0.00012715,2]
[332254166,1721094746473,-500.0,0.00012706,2]
[332254167,1721094777737,-276.19953925,0.00012715,2]
[332254169,1721094783118,500.0,0.00012698,2]
[332254170,1721094829207,500.0,0.00012689,2]
[332254171,1721094881261,-500.0,0.0001268,2]
[332254172,1721094924590,-500.0,0.00012671,2]
[332254173,1721094991914,349.0,0.00027,120]
[332254175,1721095257039,-627.51,0.00012061,2]
[332254176,1721095257660,-306.44677199,0.0001261,2]
[332254181,1721095832183,-414.96820624,0.00011098,2]
[332254182,1721095832197,-347.40099992,0.00011098,2]
[332254183,1721095832208,-577.50775,0.00011098,2]
[332254185,1721095832220,-566.55211337,0.00011098,2]
[332254188,1721095832231,-538.88,0.00011098,2]
[332254189,1721095832242,-1057.3,0.00011098,2]
[332254190,1721095832254,-190.91264692,0.00011098,2]
[332254191,1721095832263,-255.2575952,0.00012504,2]
[332254192,1721095832275,-244.7424048,0.00012504,2]
[332254193,1721095832284,-500.0,0.00012513,2]
[332254194,1721095832293,-500.0,0.00012522,2]
[332254195,1721095832302,-500.0,0.0001253,2]
[332254196,1721095832312,-500.0,0.00012539,2]
[332254197,1721095832321,-242.15029767,0.00012548,2]
[332254198,1721095832383,-257.84970233,0.00012548,2]
[332254199,1721095832393,-500.0,0.00012557,2]
[332254200,1721095832403,-108.91312437,0.00012566,2]
[332254201,1721095832414,-391.08687563,0.00012566,2]
[332254202,1721095832424,-50.34768851,0.00012574,2]
[332254203,1721095832438,-449.65231149,0.00012574,2]
[332254204,1721095832448,-55.77866227,0.00012583,2]
[332254205,1721095832459,-444.22133773,0.00012583,2]
[332254206,1721095832468,-500.0,0.00012592,2]
[332254207,1721095832477,-500.0,0.00012601,2]
[332254208,1721095832487,-300.0,0.00012609,2]
[332254209,1721095832496,-193.55322801,0.0001261,2]
[332254210,1721095832505,-590.84567593,0.0001261,2]
[332254211,1721095832514,-500.0,0.00012618,2]
[332254212,1721095832523,-500.0,0.00012627,2]
[332254213,1721095832532,-500.0,0.00012636,2]
[332254214,1721095832542,-500.0,0.00012645,2]